bitfinex/quotes_SOLUSD_20251127
["timestamp","ask_amount","ask_price","bid_price","bid_amount"]
[1764256731432,0.68,141.64,141.6,11.13263687]
[1764256732012,0.68,141.64,141.61,7.06164818]
[1764256732827,0.68,141.67,141.62,11.80263687]
[1764256733035,0.68,141.67,141.63,2.32269195]
[1764256733943,0.68,141.67,141.64,7.06015249]
[1764256734326,0.68,141.67,141.63,9.38317328]
[1764256734849,0.68,141.67,141.63,7.06048133]
[1764256735424,7.73867092,141.67,141.63,7.06048133]
[1764256735846,0.68,141.66,141.63,7.06048133]
[1764256736941,10.06186961,141.66,141.6,2.32269195]
[1764256737150,3.12,141.65,141.6,2.32269195]
[1764256737351,3.8,141.65,141.59,37.65417967]
[1764256737520,0.68,141.64,141.6,2.32269195]
[1764256737722,0.68,141.64,141.6,27.04020607]
[1764256738639,2.32269195,141.67,141.61,2.32269195]
[1764256738842,3.8,141.66,141.61,2.32269195]
[1764256739342,0.68,141.65,141.61,2.32269195]
[1764256740015,0.68,141.65,141.61,9.38397612]
[1764256740743,7.73978277,141.65,141.61,7.06128417]
[1764256741245,0.68,141.64,141.6,7.06195829]
[1764256741742,2.32269195,141.63,141.57,16.308864]
[1764256741941,3.12,141.62,141.58,16.308864]
[1764256742244,3.12,141.62,141.58,2.32269195]
[1764256742422,0.68,141.61,141.58,2.32269195]
[1764256743935,0.68,141.61,141.59,7.06264566]
[1764256746744,3.00269195,141.61,141.56,16.308864]
[1764256747116,0.68,141.6,141.56,16.308864]
[1764256747723,0.68,141.6,141.56,25.69555089]
[1764256748433,3.00269195,141.6,141.54,9.58762999]
[1764256748638,3.00269195,141.6,141.54,27.25048148]
[1764256748639,0.68,141.6,141.54,27.25048148]
[1764256748838,3.8,141.59,141.55,9.38715013]
[1764256749532,0.68,141.58,141.55,9.38715013]
[1764256750051,0.68,141.58,141.55,27.0487538]
[1764256750266,0.68,141.58,141.55,24.72606185]
[1764256750453,0.68,141.58,141.55,27.0487538]
[1764256751162,0.68,141.58,141.55,7.06445818]
[1764256753546,0.68,141.58,141.55,9.38715013]
[1764256754442,0.68,141.58,141.55,27.0487538]
[1764256755355,10.18222199,141.6,141.56,2.32269195]
[1764256755536,3.84,141.6,141.57,9.38633537]
[1764256755949,3.84,141.6,141.57,10.05633537]
[1764256756253,0.72,141.59,141.57,7.06364342]
[1764256758449,0.72,141.59,141.56,24.72449844]
[1764256758647,3.84,141.6,141.56,27.71719039]
[1764256758860,3.12,141.6,141.56,27.71719039]
[1764256759039,0.72,141.59,141.56,27.04719039]
[1764256759252,9.3840303,141.62,141.56,27.04719039]
[1764256759253,0.72,141.62,141.57,2.32269195]
[1764256759436,3.84,141.62,141.58,2.32269195]
[1764256759634,3.84,141.62,141.57,0.67]
[1764256759936,0.72,141.61,141.57,0.67]
[1764256761032,0.72,141.61,141.58,7.06314451]
[1764256761642,0.72,141.61,141.58,24.72100578]
[1764256761960,3.12,141.62,141.58,24.72100578]
[1764256762133,3.12,141.65,141.6,2.32269195]
[1764256762341,0.72,141.64,141.6,2.32269195]
[1764256763157,0.72,141.64,141.61,7.06164818]
[1764256765074,2.32269195,141.63,141.59,7.06253131]
[1764256765438,0.72,141.62,141.59,7.06253131]
[1764256766134,0.72,141.62,141.58,17.65743582]
[1764256766135,0.72,141.62,141.58,27.04327228]
[1764256767350,0.72,141.62,141.58,27.71327228]
[1764256767578,0.72,141.62,141.59,2.32269195]
[1764256767939,0.72,141.62,141.58,24.72058033]
[1764256768139,0.72,141.62,141.58,27.04327228]
[1764256770068,7.78123002,141.62,141.58,7.06314451]
[1764256770372,3.12,141.61,141.58,9.38583646]
[1764256770675,3.84,141.61,141.58,9.38583646]
[1764256770849,3.84,141.61,141.58,27.04369773]
[1764256771468,3.12,141.61,141.58,9.38583646]
[1764256771765,3.84,141.61,141.58,9.38583646]
[1764256772657,0.72,141.63,141.59,2.99269195]
[1764256772866,0.72,141.64,141.6,2.32269195]
[1764256773173,3.84,141.64,141.6,2.32269195]
[1764256773472,3.84,141.64,141.6,2.99269195]
[1764256773765,0.72,141.64,141.61,2.32269195]
[1764256774169,0.72,141.64,141.62,7.06114955]
[1764256774578,0.72,141.64,141.6,25.69347328]
[1764256774865,0.72,141.64,141.6,43.34884051]
[1764256776056,0.72,141.64,141.61,2.32269195]
[1764256777571,0.72,141.64,141.6,43.34884051]
[1764256780548,0.72,141.64,141.6,44.65892008]
[1764256780869,11.41318643,141.64,141.6,7.06191733]
[1764256781272,0.68,141.63,141.6,7.06191733]
[1764256781957,0.68,141.63,141.58,28.35337692]
[1764256782158,7.74071774,141.63,141.58,28.35337692]
[1764256782549,0.68,141.62,141.58,28.35337692]
[1764256782752,0.68,141.62,141.58,29.00337692]
[1764256785287,0.68,141.62,141.59,3.63277152]
[1764256787964,0.68,141.62,141.6,7.06214689]
[1764256791788,0.68,141.64,141.6,11.34491841]
[1764256791976,3.8,141.64,141.61,3.63277152]
[1764256792275,3.8,141.64,141.61,10.69399181]
[1764256792480,0.68,141.63,141.61,7.06122029]
[1764256797294,0.68,141.63,141.59,28.21274461]
[1764256797471,0.68,141.63,141.59,28.86274461]
[1764256799381,0.68,141.63,141.59,28.21274461]
[1764256800098,0.68,141.63,141.59,28.86274461]
[1764256802185,0.68,141.63,141.6,3.63277152]
[1764256803396,7.05932383,141.66,141.6,4.28277152]
[1764256803636,0.68,141.66,141.62,3.63277152]
[1764256803895,0.68,141.66,141.62,10.69357851]
[1764256804075,7.73919926,141.66,141.62,11.34357851]
[1764256804472,0.68,141.65,141.6,18.30461154]
[1764256804696,0.68,141.65,141.61,10.69422899]
[1764256804983,0.68,141.65,141.62,3.63277152]
[1764256805503,0.68,141.65,141.61,11.34422899]
[1764256806005,0.68,141.65,141.61,10.69422899]
[1764256806182,0.68,141.65,141.61,11.34422899]
[1764256809082,10.8586806,141.67,141.63,3.63277152]
[1764256809281,10.8586806,141.67,141.64,3.63277152]
[1764256809483,3.8,141.67,141.64,3.63277152]
[1764256809683,7.73788706,141.69,141.65,4.28277152]
[1764256809881,3.12,141.68,141.65,4.28277152]
[1764256810082,3.12,141.68,141.65,3.63277152]
[1764256810083,0.69,141.67,141.65,3.63277152]
[1764256810281,0.69,141.67,141.64,7.05997815]
[1764256810511,0.69,141.67,141.64,10.69274967]
[1764256811386,0.69,141.67,141.63,24.71227847]
[1764256811590,0.69,141.67,141.63,29.01504999]
[1764256813197,0.69,141.67,141.64,4.30277152]
[1764256813515,0.69,141.67,141.65,7.05965407]
[1764256814408,0.69,141.67,141.62,3.63277152]
[1764256814703,0.69,141.67,141.61,17.6535171]
[1764256814704,3.63277152,141.66,141.61,7.06164818]
[1764256814911,0.72,141.65,141.61,7.06164818]
[1764256815108,0.72,141.65,141.61,10.6944197]
[1764256815311,3.12,141.64,141.61,10.6944197]
[1764256815497,3.12,141.64,141.61,7.06164818]
[1764256815700,0.72,141.63,141.61,10.6944197]
[1764256816501,3.84,141.65,141.61,28.34854017]
[1764256816712,3.12,141.65,141.61,28.34854017]
[1764256816892,0.72,141.64,141.61,28.34854017]
[1764256818905,0.72,141.64,141.61,29.01854017]
[1764256819417,0.72,141.64,141.61,28.34854017]
[1764256826521,0.72,141.64,141.61,10.6944197]
[1764256826827,0.72,141.64,141.61,7.06164818]
[1764256828198,0.72,141.64,141.61,11.3644197]
[1764256828426,0.72,141.64,141.61,10.6944197]
[1764256829127,0.72,141.64,141.61,7.06164818]
[1764256837607,0.72,141.64,141.61,10.6944197]
[1764256838530,0.72,141.64,141.61,7.06164818]
[1764256838833,0.72,141.64,141.61,10.6944197]
[1764256839446,0.72,141.64,141.61,7.06164818]
[1764256839616,0.72,141.64,141.61,11.3644197]
[1764256840227,0.72,141.64,141.61,10.6944197]
[1764256842433,0.72,141.64,141.61,7.06164818]
[1764256842732,0.72,141.64,141.61,9.38655556]
[1764256844636,0.72,141.64,141.61,7.06164818]
[1764256844842,0.72,141.64,141.61,9.38655556]
[1764256846641,10.10510551,141.64,141.56,4.35876975]
[1764256846820,9.38646556,141.62,141.57,7.06325348]
[1764256847018,3.12,141.61,141.57,7.06325348]
[1764256847218,3.82,141.61,141.57,10.05816086]
[1764256847449,0.7,141.6,141.56,4.35876975]
[1764256847616,0.7,141.6,141.56,13.7477147]
[1764256849020,0.7,141.6,141.57,0.67]
[1764256850441,0.7,141.6,141.57,7.7332904]
[1764256851539,0.7,141.6,141.57,7.0632904]
[1764256853443,0.7,141.6,141.58,2.32490738]
[1764256853641,0.7,141.6,141.57,9.38819778]
[1764256854152,0.7,141.6,141.57,10.05819778]
[1764256854360,0.7,141.6,141.58,2.32490738]
[1764256855131,3.12,141.61,141.58,2.32490738]
[1764256855453,21.21565715,141.62,141.6,2.32490738]
[1764256855636,3.12,141.63,141.61,2.32490738]
[1764256856230,3.82,141.63,141.61,2.32490738]
[1764256856854,3.82,141.63,141.6,2.99490738]
[1764256857460,3.82,141.63,141.61,7.06164818]
[1764256858738,3.12,141.63,141.61,7.06164818]
[1764256858938,3.82,141.63,141.61,7.06164818]
[1764256859540,0.7,141.63,141.61,7.06164818]
[1764256861052,0.7,141.65,141.61,7.06164818]
[1764256861357,3.12,141.64,141.61,9.38655556]
[1764256861662,3.12,141.64,141.61,10.05655556]
[1764256861837,3.82,141.64,141.61,10.05655556]
[1764256862255,0.7,141.63,141.61,7.06164818]
[1764256863039,3.12,141.64,141.61,7.06164818]
[1764256863245,3.12,141.65,141.62,0.67]
[1764256863444,3.82,141.65,141.62,2.99490738]
[1764256863968,3.82,141.65,141.63,2.32490738]
[1764256864157,3.82,141.65,141.62,2.99490738]
[1764256864657,3.82,141.65,141.62,9.38626488]
[1764256864866,3.82,141.65,141.62,2.32490738]
[1764256865066,3.82,141.65,141.61,32.44712615]
[1764256865265,3.82,141.65,141.63,7.06065099]
[1764256865962,3.82,141.69,141.64,2.99490738]
[1764256866158,3.82,141.69,141.65,2.32490738]
[1764256866466,0.7,141.68,141.64,24.2000673]
[1764256866838,0.7,141.68,141.65,9.38456145]
[1764256867044,0.7,141.68,141.65,10.05456145]
[1764256867349,0.7,141.68,141.65,27.70369664]
[1764256868372,3.12,141.69,141.66,0.67]
[1764256868685,1e-08,141.73,141.68,20.95867876]
[1764256868867,1e-08,141.73,141.71,2.32490738]
[1764256869069,1e-08,141.73,141.71,7.05652021]
[1764256869273,1e-08,141.73,141.72,3.82]
[1764256871258,1e-08,141.73,141.72,10.87616709]
[1764256871759,1e-08,141.73,141.72,3.82]
[1764256871966,0.66000001,141.73,141.7,9.38170694]
[1764256872267,0.66000001,141.73,141.71,7.15448021]
[1764256872957,0.66000001,141.73,141.71,9.47938759]
[1764256873159,0.66000001,141.73,141.71,16.53572691]
[1764256873451,0.66000001,141.73,141.71,14.21081953]
[1764256873884,0.66000001,141.73,141.71,16.53572691]
[1764256874345,0.66000001,141.73,141.71,7.15448021]
[1764256874546,0.66000001,141.73,141.66,3.12]
[1764256874547,10.0406092,141.73,141.66,7.72879934]
[1764256874747,10.0406092,141.73,141.68,3.12]
[1764256874955,0.67,141.72,141.68,3.12]
[1764256875162,3.1,141.71,141.69,7.05766109]
[1764256875665,3.77,141.71,141.69,7.05766109]
[1764256876868,3.1,141.71,141.68,10.17811516]
[1764256877075,0.67,141.7,141.68,7.05811516]
[1764256877747,0.67,141.7,141.65,16.308864]
[1764256878069,15.47648532,141.7,141.64,16.44296942]
[1764256878254,2.03346972,141.69,141.64,7.05994688]
[1764256878453,2.70346972,141.69,141.64,7.05994688]
[1764256878650,0.67,141.68,141.64,7.05994688]
[1764256878849,3.1,141.67,141.64,7.05994688]
[1764256879348,3.77,141.67,141.64,7.05994688]
[1764256879672,0.67,141.67,141.64,9.0934166]
[1764256880173,0.67,141.66,141.64,7.05994688]
[1764256882876,3.77,141.68,141.64,9.84253292]
[1764256883049,0.67,141.67,141.64,9.17253292]
[1764256884771,0.67,141.67,141.64,7.05994688]
[1764256885476,0.67,141.67,141.64,9.17253292]
[1764256888078,3.1,141.69,141.65,2.78258604]
[1764256888264,3.77,141.69,141.65,2.78258604]
[1764256888458,3.1,141.69,141.65,0.67]
[1764256888666,0.67,141.68,141.65,0.67]
[1764256888865,0.67,141.68,141.64,24.71032812]
[1764256889679,0.67,141.68,141.64,25.38032812]
[1764256890583,0.67,141.68,141.65,9.09246195]
[1764256890962,0.67,141.68,141.66,2.03310456]
[1764256891670,3.1,141.69,141.66,2.03310456]
[1764256891852,3.77,141.69,141.66,2.03310456]
[1764256892780,3.77,141.69,141.66,9.09185548]
[1764256893278,3.1,141.69,141.66,9.09185548]
[1764256893476,0.67,141.68,141.66,9.09185548]
[1764256896780,0.67,141.68,141.66,7.05875092]
[1764256896955,0.67,141.68,141.64,26.74230996]
[1764256897157,0.67,141.68,141.64,14.11731523]
[1764256897462,0.67,141.68,141.64,16.15041979]
[1764256897685,0.67,141.68,141.64,33.80080103]
[1764256898386,0.67,141.68,141.64,34.47080103]
[1764256899587,0.67,141.68,141.64,33.80080103]
[1764256899982,0.67,141.68,141.64,26.74318987]
[1764256900474,0.67,141.68,141.64,24.71008531]
[1764256901209,0.67,141.68,141.64,26.74318987]
[1764256901481,0.67,141.68,141.64,24.71008531]
[1764256901665,0.67,141.68,141.64,26.74318987]
[1764256902565,0.67,141.68,141.64,27.88702753]
[1764256903574,0.67,141.68,141.64,10.23664629]
[1764256903771,0.67,141.68,141.64,10.90664629]
[1764256905166,0.67,141.68,141.65,3.84694222]
[1764256905371,3.77,141.68,141.65,3.84694222]
[1764256905585,3.1,141.68,141.65,3.84694222]
[1764256905791,3.1,141.68,141.66,3.17694222]
[1764256906090,7.05689859,141.71,141.66,3.84694222]
[1764256906260,0.66,141.71,141.67,0.67]
[1764256906465,3.76,141.72,141.68,3.17694222]
[1764256906884,0.66,141.72,141.69,3.84694222]
[1764256907275,0.66,141.72,141.69,10.2341661]
[1764256909578,3.76000001,141.73,141.69,10.9041661]
[1764256909965,0.66,141.72,141.69,3.84694222]
[1764256910166,0.66,141.72,141.69,10.90458728]
[1764256910989,0.66,141.72,141.69,7.05764506]
[1764256911895,0.66,141.72,141.69,10.23458728]
[1764256912490,0.66,141.72,141.69,7.05764506]
[1764256913295,0.66,141.72,141.67,24.03734056]
[1764256913494,0.66,141.72,141.67,27.21428278]
[1764256914203,3.1,141.71,141.68,3.17694222]
[1764256914702,3.76,141.71,141.67,41.68398416]
[1764256914899,3.76,141.71,141.68,3.17694222]
[1764256915201,3.76,141.71,141.69,7.05766109]
[1764256917495,1e-08,141.73,141.7,0.67]
[1764256917687,3.76000001,141.73,141.69,10.90460331]
[1764256918089,3.10000001,141.73,141.69,7.72766109]
[1764256918290,0.66,141.72,141.69,28.54875603]
[1764256920183,1e-08,141.73,141.71,3.17694222]
[1764256920384,1e-08,141.73,141.72,3.84694222]
[1764256920602,1e-08,141.73,141.72,3.17694222]
[1764256921318,0.66000001,141.73,141.71,7.05666502]
[1764256921620,0.66000001,141.73,141.69,7.05742969]
[1764256923198,0.66000001,141.73,141.69,3.84694222]
[1764256924693,0.66000001,141.73,141.7,7.05716302]
[1764256927133,0.66000001,141.73,141.69,7.0576023]
[1764256927289,0.66000001,141.73,141.67,7.05844365]
[1764256927290,3.1,141.72,141.67,7.05844365]
[1764256927617,3.1,141.72,141.68,3.84694222]
[1764256927791,0.66,141.71,141.68,3.84694222]
[1764256928211,0.66,141.71,141.68,3.17694222]
[1764256928429,0.66,141.71,141.68,10.23497111]
[1764256929527,0.66,141.71,141.68,3.17694222]
[1764256929695,0.66,141.71,141.67,3.17694222]
[1764256929894,0.66,141.71,141.66,28.55398725]
[1764256930104,0.66,141.71,141.67,3.17694222]
[1764256930517,0.66,141.71,141.68,7.05815923]
[1764256932305,7.7168964,141.71,141.67,7.05843807]
[1764256932622,0.66,141.71,141.67,10.23538029]
[1764256932823,0.68,141.7,141.67,10.23538029]
[1764256933197,0.68,141.7,141.67,7.05843807]
[1764256933713,0.68,141.7,141.67,10.08304618]
[1764256936219,0.68,141.7,141.67,8.87309163]
[1764256937528,0.68,141.7,141.67,7.05843807]
[1764256937736,0.68,141.7,141.67,8.87309163]
[1764256939541,3.1,141.72,141.68,2.48465356]
[1764256939715,0.67,141.71,141.68,2.48465356]
[1764256940835,0.67,141.71,141.69,7.05766109]
[1764256942456,0.67,141.71,141.68,7.05796872]
[1764256945562,7.72683371,141.71,141.67,8.87313018]
[1764256945716,7.72683371,141.71,141.67,7.05847662]
[1764256946043,0.67,141.7,141.67,7.05847662]
[1764256946220,0.67,141.7,141.66,7.05895068]
[1764256947527,7.72732436,141.7,141.66,7.05895068]
[1764256947735,7.05732436,141.7,141.66,7.05895068]
[1764256947942,0.67,141.69,141.66,7.05895068]
[1764256948638,0.67,141.69,141.66,8.87360424]
[1764256950940,0.67,141.69,141.65,8.87430763]
[1764256951245,0.67,141.69,141.65,9.54430763]
[1764256951645,0.67,141.69,141.65,7.72965407]
[1764256951842,0.67,141.69,141.65,9.54430763]
[1764256955334,7.7276954,141.69,141.65,8.87430763]
[1764256955838,0.67,141.68,141.65,8.87430763]
[1764256957740,0.67,141.68,141.65,9.54430763]
[1764256958045,0.67,141.68,141.66,1.81465356]
[1764256958354,7.05737537,141.7,141.66,1.81465356]
[1764256958653,0.67,141.69,141.66,1.81465356]
[1764256959449,0.67,141.69,141.66,8.87338143]
[1764256961053,7.72767193,141.69,141.66,7.05872787]
[1764256961465,0.65,141.68,141.66,7.05872787]
[1764256963055,0.65,141.7,141.66,9.54338143]
[1764256963247,0.65,141.7,141.66,8.87338143]
[1764256963438,0.65,141.7,141.66,9.54338143]
[1764256963943,0.65,141.7,141.66,8.87338143]
[1764256964152,0.65000001,141.73,141.69,18.12351756]
[1764256964341,0.65000001,141.73,141.7,1.81465356]
[1764256964540,1e-08,141.73,141.72,1.16035537]
[1764256964950,1e-08,141.73,141.72,25.19538646]
[1764256965643,1e-08,141.73,141.72,24.52538646]
[1764256966765,0.65000001,141.73,141.72,16.308864]
[1764256967059,0.65000001,141.73,141.71,1.16035537]
[1764256967965,0.65000001,141.73,141.72,1.83035537]
[1764256967966,1e-08,141.73,141.72,1.83035537]
[1764256968661,1e-08,141.73,141.72,1.16035537]
[1764256969159,1e-08,141.73,141.72,8.21652246]
[1764256969559,1e-08,141.73,141.72,8.88652246]
[1764256969761,0.1,141.76,141.75,16.308864]
[1764256969973,0.1,141.79,141.78,1.16035537]
[1764256970457,0.1,141.79,141.78,4.55471547]
[1764256971260,0.1,141.79,141.78,11.60789645]
[1764256972850,0.1,141.79,141.78,10.44754108]
[1764256973051,0.1,141.79,141.78,11.60789645]
[1764256973250,0.75,141.79,141.78,2.8243601]
[1764256973455,0.75,141.79,141.78,9.87754108]
[1764256973655,0.1,141.79,141.78,9.87754108]
[1764256974253,0.75,141.79,141.76,8.2143957]
[1764256974452,0.75,141.79,141.76,31.67486136]
[1764256974856,0.75,141.79,141.76,23.46046566]
[1764256975057,0.75,141.79,141.76,30.51462531]
[1764256975565,0.75,141.79,141.75,7.05450239]
[1764256976777,12.0630535,141.79,141.74,7.05498411]
[1764256976948,10.90269813,141.79,141.74,7.05498411]
[1764256977142,0.65,141.78,141.74,7.05498411]
[1764256977676,1.81035537,141.78,141.74,7.05498411]
[1764256977981,1.81035537,141.78,141.71,16.308864]
[1764256977982,1.16035537,141.77,141.71,1.16035537]
[1764256978153,1.81035537,141.77,141.71,1.16035537]
[1764256978474,0.65,141.76,141.71,1.16035537]
[1764256978682,0.65,141.76,141.72,7.05598195]
[1764256981961,0.65,141.76,141.72,1.16035537]
[1764256982474,0.65,141.76,141.71,25.85798505]
[1764256982973,1.16035537,141.75,141.71,7.05666502]
[1764256983146,7.70435,141.76,141.7,16.308864]
[1764256983147,4.26035537,141.74,141.7,16.308864]
[1764256983565,0.65,141.73,141.7,23.36581404]
[1764256984371,0.65,141.73,141.7,7.05695004]
[1764256986775,1.81035537,141.73,141.69,7.05758061]
[1764256987277,0.65,141.72,141.69,7.05758061]
[1764256988956,11.3153165,141.75,141.69,7.05758061]
[1764256988957,0.65,141.78,141.72,25.11880892]
[1764256989152,0.65,141.78,141.75,1.16035537]
[1764256989386,0.75,141.79,141.75,1.16035537]
[1764256989681,0.65,141.78,141.75,1.16035537]
[1764256989870,0.1,141.79,141.76,0.57]
[1764256990052,0.1,141.79,141.77,1.16035537]
[1764256990455,0.1,141.79,141.78,2.82475901]
[1764256990874,0.1,141.79,141.78,9.87793999]
[1764256991079,0.1,141.79,141.78,7.05318098]
[1764256991378,0.1,141.79,141.78,14.20446669]
[1764256991581,0.1,141.79,141.78,7.05318098]
[1764256992268,0.1,141.79,141.78,9.87793999]
[1764256992778,0.1,141.79,141.78,7.05318098]
[1764256993681,0.8,141.79,141.78,7.05318098]
[1764256994576,0.1,141.79,141.78,7.05318098]
[1764256996784,0.1,141.79,141.78,8.21353635]
[1764256998574,0.1,141.79,141.77,7.15121713]
[1764256998778,0.77,141.79,141.77,7.05352323]
[1764256999080,0.77,141.79,141.77,8.2138786]
[1764257000581,0.77,141.79,141.77,7.05352323]
[1764257000800,0.77,141.79,141.76,7.05405031]
[1764257002397,1.16035537,141.78,141.72,35.10910993]
[1764257002571,1.16035537,141.77,141.73,7.05566923]
[1764257002997,1.16035537,141.74,141.67,4.25475829]
[1764257003177,1.16035537,141.73,141.67,5.41511366]
[1764257003377,1.16035537,141.73,141.67,13.90781906]
[1764257003581,0.67,141.72,141.68,1.16035537]
[1764257004078,0.67,141.72,141.68,24.70286765]
[1764257004703,8.88653399,141.72,141.68,7.05815923]
[1764257005186,0.67,141.71,141.68,7.05815923]
[1764257005694,0.67,141.71,141.68,24.70355731]
[1764257006004,0.67,141.71,141.69,1.16035537]
[1764257006170,0.67,141.71,141.68,25.86391268]
[1764257006803,8.80994492,141.75,141.68,25.86391268]
[1764257007097,0.67,141.72,141.69,1.16035537]
[1764257007599,0.67,141.72,141.68,25.27355731]
[1764257007900,0.67,141.72,141.68,26.43391268]
[1764257010397,0.67,141.72,141.68,25.86391268]
[1764257010904,1.83035537,141.72,141.68,7.05815923]
[1764257011077,8.88668989,141.72,141.68,7.05815923]
[1764257011278,0.67,141.71,141.67,27.05207496]
[1764257011988,0.67,141.71,141.67,10.74321096]
[1764257014007,8.88720742,141.71,141.66,7.05903744]
[1764257014491,0.67,141.7,141.66,7.05903744]
[1764257015193,4.26035537,141.72,141.67,0.57]
[1764257015399,4.26035537,141.72,141.66,8.21939281]
[1764257015400,0.67,141.71,141.66,8.21939281]
[1764257015580,0.67,141.71,141.68,1.16035537]
[1764257015782,0.67,141.71,141.67,1.73035537]
[1764257016706,25.36838134,141.71,141.65,24.88813781]
[1764257016882,41.67724534,141.71,141.62,0.57]
[1764257017201,41.67724534,141.71,141.62,28.78824605]
[1764257017202,1.16035537,141.68,141.62,28.78824605]
[1764257017408,4.28035537,141.68,141.62,28.78824605]
[1764257017702,0.67,141.7,141.64,13.4513664]
[1764257017907,0.67,141.7,141.67,1.16035537]
[1764257018288,0.67,141.7,141.66,1.16035537]
[1764257018605,0.67,141.7,141.66,8.21941915]
[1764257019886,0.67,141.7,141.66,8.78941915]
[1764257023813,0.67,141.7,141.66,8.21941915]
[1764257024103,3.12,141.71,141.66,25.86730846]
[1764257024302,0.65,141.7,141.68,1.16035537]
[1764257024487,0.65,141.7,141.67,1.16035537]
[1764257025308,0.65,141.7,141.66,25.86730846]
[1764257026809,0.65,141.7,141.66,19.46283706]
[1764257027403,0.65,141.7,141.66,17.64788931]
[1764257029296,0.65,141.7,141.66,24.70704503]
[1764257030608,0.65,141.7,141.66,26.52199278]
[1764257030998,0.65,141.7,141.66,27.09199278]
[1764257031315,0.65,141.7,141.65,9.44460182]
[1764257032098,0.65,141.7,141.65,27.09373701]
[1764257035412,0.65,141.7,141.66,1.81494775]
[1764257035601,0.65,141.7,141.67,7.05865744]
[1764257039215,0.65,141.7,141.66,7.05915572]
[1764257039911,0.65,141.7,141.65,19.46408294]
[1764257039912,1.81494775,141.68,141.62,5.50296503]
[1764257040415,0.65,141.67,141.63,7.06065099]
[1764257040892,0.65,141.67,141.63,7.63065099]
[1764257041093,0.65,141.67,141.63,7.06065099]
[1764257042316,0.65,141.67,141.63,7.63065099]
[1764257042706,0.65,141.67,141.63,7.06065099]
[1764257042892,0.65,141.67,141.62,3.68801728]
[1764257042893,12.64364337,141.67,141.62,3.68801728]
[1764257043097,12.64364337,141.67,141.62,11.3191169]
[1764257043098,5.58494775,141.67,141.62,11.3191169]
[1764257043298,0.65,141.66,141.62,13.13406465]
[1764257043492,3.77,141.67,141.63,2.38494775]
[1764257044500,3.12,141.67,141.63,2.38494775]
[1764257044713,0.65,141.66,141.63,2.38494775]
[1764257044909,3.12,141.67,141.62,28.40199078]
[1764257044910,0.65,141.69,141.65,1.81494775]
[1764257045110,3.77,141.69,141.65,1.81494775]
[1764257045314,3.77,141.69,141.66,7.05915572]
[1764257045616,0.65,141.68,141.66,7.05915572]
[1764257046412,1.81494775,141.7,141.66,9.44410347]
[1764257046413,0.65,141.7,141.66,9.44410347]
[1764257046718,0.65,141.69,141.66,9.44410347]
[1764257046914,0.65,141.69,141.66,8.87410347]
[1764257050423,0.65,141.69,141.66,7.05915572]
[1764257053828,0.65,141.69,141.65,26.52321221]
[1764257055002,0.65,141.69,141.65,27.09321221]
[1764257058530,0.65,141.69,141.67,7.05865744]
[1764257060722,3.81,141.7,141.67,26.52024879]
[1764257061325,0.71,141.69,141.67,26.52024879]
[1764257061506,0.71,141.69,141.67,7.05865744]
[1764257062535,8.87037499,141.74,141.67,26.52024879]
[1764257062726,3.1,141.73,141.68,1.81494775]
[1764257062930,3.81,141.73,141.68,1.81494775]
[1764257063119,0.71,141.72,141.68,1.81494775]
[1764257064420,0.71,141.72,141.67,27.09024879]
[1764257065936,7.76626731,141.72,141.67,27.09024879]
[1764257066537,0.71,141.71,141.67,27.09024879]
[1764257066932,0.71,141.71,141.67,25.27530104]
[1764257067133,0.71,141.71,141.67,27.09024879]
[1764257067921,0.71,141.71,141.67,26.52024879]
[1764257068116,0.71,141.71,141.67,24.70530104]
[1764257068318,7.7667479,141.71,141.66,7.05896054]
[1764257068516,2.52494775,141.7,141.66,7.05896054]